[Event "Titled Tuesday Blitz February 15 Late 2022"]
[White "Urbina Quiroz, Edwin"]
[Black "Tasev, Dejan"]
[WhiteFideId "6500650"]
[BlackFideId "936618"]
[WhiteElo "2130"]
[BlackElo "2253"]
[Result "1/2-1/2"]
[Round "01"]
[TimeControl "180+1"]
[Date "2022.02.16"]
[WhiteClock "0:00:10"]
[BlackClock "0:00:51"]

1. e4 {[%clk 0:02:53]}  c6 {[%clk 0:02:59]} 2. Nf3 {[%clk 0:02:52]}  d5 {[%clk 0:02:59]} 3. Nc3 {[%clk 0:02:52]}  Bg4 {[%clk 0:02:59]} 4. h3 {[%clk 0:02:52]}  Bxf3 {[%clk 0:02:59]} 5. Qxf3 {[%clk 0:02:53]}  e6 {[%clk 0:02:59]} 6. d3 {[%clk 0:02:52]}  Nf6 {[%clk 0:02:59]} 7. Bd2 {[%clk 0:02:51]}  Be7 {[%clk 0:02:58]} 8. g3 {[%clk 0:02:39]}  Nbd7 {[%clk 0:02:57]} 9. Bg2 {[%clk 0:02:38]}  O-O {[%clk 0:02:56]} 10. O-O {[%clk 0:02:37]}  Rc8 {[%clk 0:02:50]} 11. Qd1 {[%clk 0:02:26]}  Qb6 {[%clk 0:02:45]} 12. Qc1 {[%clk 0:02:23]}  Rfd8 {[%clk 0:02:39]} 13. Kh2 {[%clk 0:02:22]}  dxe4 {[%clk 0:02:34]} 14. Nxe4 {[%clk 0:02:23]}  Nxe4 {[%clk 0:02:32]} 15. dxe4 {[%clk 0:02:18]}  Ne5 {[%clk 0:02:27]} 16. Bc3 {[%clk 0:01:50]}  Nc4 {[%clk 0:02:17]} 17. b3 {[%clk 0:01:31]}  Nd6 {[%clk 0:02:09]} 18. Qe1 {[%clk 0:01:19]}  Qc7 {[%clk 0:02:02]} 19. Be5 {[%clk 0:01:13]}  f6 {[%clk 0:02:02]} 20. Bb2 {[%clk 0:01:07]}  e5 {[%clk 0:02:00]} 21. a4 {[%clk 0:00:58]}  Nf7 {[%clk 0:01:55]} 22. h4 {[%clk 0:00:55]}  Rd6 {[%clk 0:01:34]} 23. Qe3 {[%clk 0:00:53]}  b6 {[%clk 0:01:31]} 24. Rfd1 {[%clk 0:00:52]}  Rcd8 {[%clk 0:01:30]} 25. Rxd6 {[%clk 0:00:47]}  Bxd6 {[%clk 0:01:29]} 26. Rd1 {[%clk 0:00:43]}  Bc5 {[%clk 0:01:27]} 27. Rxd8+ {[%clk 0:00:41]}  Qxd8 {[%clk 0:01:26]} 28. Qe2 {[%clk 0:00:39]}  Kf8 {[%clk 0:01:24]} 29. Bh3 {[%clk 0:00:36]}  Qd6 {[%clk 0:01:18]} 30. Kg2 {[%clk 0:00:32]}  a5 {[%clk 0:01:15]} 31. Bf5 {[%clk 0:00:22]}  g6 {[%clk 0:01:15]} 32. Bg4 {[%clk 0:00:22]}  Kg7 {[%clk 0:01:15]} 33. Bf3 {[%clk 0:00:20]}  Bd4 {[%clk 0:01:13]} 34. Bc1 {[%clk 0:00:18]}  Qc5 {[%clk 0:01:12]} 35. Bg4 {[%clk 0:00:15]}  Qd6 {[%clk 0:01:07]} 36. Qd3 {[%clk 0:00:15]}  Qc5 {[%clk 0:01:05]} 37. Qe2 {[%clk 0:00:12]}  Qc3 {[%clk 0:01:05]} 38. Be6 {[%clk 0:00:11]}  Nd8 {[%clk 0:01:01]} 39. Bc4 {[%clk 0:00:11]}  Qb4 {[%clk 0:00:58]} 40. Qd2 {[%clk 0:00:11]}  Qxd2 {[%clk 0:00:58]} 41. Bxd2 {[%clk 0:00:12]}  c5 {[%clk 0:00:58]} 42. Bd5 {[%clk 0:00:11]}  Nf7 {[%clk 0:00:57]} 43. Bxf7 {[%clk 0:00:11]}  Kxf7 {[%clk 0:00:57]} 44. Kf3 {[%clk 0:00:11]}  Bb2 {[%clk 0:00:56]} 45. Ke2 {[%clk 0:00:10]}  Ke6 {[%clk 0:00:56]} 46. Kd3 {[%clk 0:00:10]}  f5 {[%clk 0:00:56]} 47. f3 {[%clk 0:00:10]}  Bd4 {[%clk 0:00:56]} 48. Be1 {[%clk 0:00:10]}  Bg1 {[%clk 0:00:55]} 49. g4 {[%clk 0:00:10]}  h5 {[%clk 0:00:54]} 50. g5 {[%clk 0:00:08]}  f4 {[%clk 0:00:52]} 51. Kc4 {[%clk 0:00:06]}  Kd6 {[%clk 0:00:52]} 52. Kd3 {[%clk 0:00:05]}  Kc6 {[%clk 0:00:52]} 53. c4 {[%clk 0:00:05]}  Bh2 {[%clk 0:00:50]} 54. Ke2 {[%clk 0:00:05]}  Bg1 {[%clk 0:00:50]} 55. Bf2 {[%clk 0:00:05]}  Bh2 {[%clk 0:00:49]} 56. Kf1 {[%clk 0:00:05]}  Bg3 {[%clk 0:00:48]} 57. Bxg3 {[%clk 0:00:05]}  fxg3 {[%clk 0:00:48]} 58. Kg2 {[%clk 0:00:05]}  Kd6 {[%clk 0:00:49]} 59. Kxg3 {[%clk 0:00:06]}  Ke6 {[%clk 0:00:49]} 60. Kf2 {[%clk 0:00:06]}  Kd6 {[%clk 0:00:49]} 61. Ke3 {[%clk 0:00:07]}  Ke6 {[%clk 0:00:49]} 62. f4 {[%clk 0:00:07]}  exf4+ {[%clk 0:00:49]} 63. Kxf4 {[%clk 0:00:08]}  Kd6 {[%clk 0:00:49]} 64. e5+ {[%clk 0:00:08]}  Kd7 {[%clk 0:00:48]} 65. Ke4 {[%clk 0:00:09]}  Ke6 {[%clk 0:00:49]} 66. Kf4 {[%clk 0:00:08]}  Ke7 {[%clk 0:00:49]} 67. Ke3 {[%clk 0:00:09]}  Kd7 {[%clk 0:00:49]} 68. Kd3 {[%clk 0:00:09]}  Ke7 {[%clk 0:00:49]} 69. Ke3 {[%clk 0:00:09]}  Kd7 {[%clk 0:00:49]} 70. Kf3 {[%clk 0:00:09]}  Ke7 {[%clk 0:00:49]} 71. Kf4 {[%clk 0:00:09]}  Kd7 {[%clk 0:00:49]} 72. Ke4 {[%clk 0:00:09]}  Ke6 {[%clk 0:00:49]} 73. Kf4 {[%clk 0:00:09]}  Ke7 {[%clk 0:00:49]} 74. e6 {[%clk 0:00:09]}  Kxe6 {[%clk 0:00:50]} 75. Ke4 {[%clk 0:00:10]}  Kd6 {[%clk 0:00:50]} 76. Kf4 {[%clk 0:00:09]}  Ke6 {[%clk 0:00:50]} 77. Ke4 {[%clk 0:00:10]}  Kd6 {[%clk 0:00:51]} 78. Kf4 {[%clk 0:00:10]}  Ke6 {[%clk 0:00:51]} 1/2-1/2


[Site "https://www.chess.com"]

[Event "Titled Tuesday Blitz February 15 Late 2022"]
[White "Vidit, Santosh Gujrathi"]
[Black "Remolar Gallen, Jose"]
[WhiteFideId "5029465"]
[BlackFideId "2215187"]
[WhiteElo "2654"]
[BlackElo "2205"]
[Result "1-0"]
[Round "01"]
[TimeControl "180+1"]
[Date "2022.02.15"]
[WhiteClock "0:01:14"]
[BlackClock "0:00:49"]

1. Nf3 {[%clk 0:03:00]}  Nf6 {[%clk 0:02:59]} 2. g3 {[%clk 0:03:00]}  g6 {[%clk 0:03:00]} 3. Bg2 {[%clk 0:03:01]}  Bg7 {[%clk 0:03:00]} 4. d4 {[%clk 0:03:01]}  O-O {[%clk 0:03:01]} 5. c4 {[%clk 0:03:01]}  d6 {[%clk 0:03:01]} 6. O-O {[%clk 0:03:01]}  Nc6 {[%clk 0:03:02]} 7. Nc3 {[%clk 0:03:00]}  a6 {[%clk 0:03:02]} 8. Bf4 {[%clk 0:02:55]}  h6 {[%clk 0:03:02]} 9. d5 {[%clk 0:02:47]}  Na5 {[%clk 0:03:00]} 10. b3 {[%clk 0:02:47]}  Rb8 {[%clk 0:02:29]} 11. Rc1 {[%clk 0:02:44]}  c5 {[%clk 0:02:21]} 12. dxc6 {[%clk 0:02:43]}  Nxc6 {[%clk 0:02:21]} 13. h3 {[%clk 0:02:26]}  Bd7 {[%clk 0:02:19]} 14. Qd2 {[%clk 0:02:21]}  g5 {[%clk 0:02:16]} 15. Be3 {[%clk 0:02:22]}  b5 {[%clk 0:02:15]} 16. Nd5 {[%clk 0:02:18]}  bxc4 {[%clk 0:02:12]} 17. Nxf6+ {[%clk 0:02:18]}  Bxf6 {[%clk 0:02:11]} 18. Rxc4 {[%clk 0:02:19]}  Qa5 {[%clk 0:01:58]} 19. Rfc1 {[%clk 0:01:43]}  Qxd2 {[%clk 0:01:48]} 20. Bxd2 {[%clk 0:01:44]}  Rfc8 {[%clk 0:01:42]} 21. Nxg5 {[%clk 0:01:39]}  hxg5 {[%clk 0:01:17]} 22. Bxc6 {[%clk 0:01:38]}  Bxh3 {[%clk 0:01:15]} 23. g4 {[%clk 0:01:23]}  Rb6 {[%clk 0:00:49]} 24. Be3 {[%clk 0:01:14]} 1-0


[Site "https://www.chess.com"]

[Event "Titled Tuesday Blitz February 15 Late 2022"]
[White "Villegas, Pierre"]
[Black "Moroni, Luca Jr"]
[WhiteFideId "654183"]
[BlackFideId "865834"]
[WhiteElo "2410"]
[BlackElo "2573"]
[Result "0-1"]
[Round "01"]
[TimeControl "180+1"]
[Date "2022.02.15"]
[WhiteClock "0:00:03"]
[BlackClock "0:00:10"]

1. d4 {[%clk 0:02:59]}  g6 {[%clk 0:02:55]} 2. c4 {[%clk 0:02:58]}  Bg7 {[%clk 0:02:54]} 3. Nc3 {[%clk 0:02:58]}  d6 {[%clk 0:02:55]} 4. e4 {[%clk 0:02:57]}  c5 {[%clk 0:02:55]} 5. Nge2 {[%clk 0:02:57]}  Nc6 {[%clk 0:02:47]} 6. Be3 {[%clk 0:02:51]}  Qa5 {[%clk 0:02:45]} 7. Qd2 {[%clk 0:02:46]}  cxd4 {[%clk 0:02:40]} 8. Nxd4 {[%clk 0:02:47]}  Nxd4 {[%clk 0:02:39]} 9. Bxd4 {[%clk 0:02:44]}  Bxd4 {[%clk 0:02:38]} 10. Qxd4 {[%clk 0:02:45]}  Nf6 {[%clk 0:02:39]} 11. Be2 {[%clk 0:02:42]}  O-O {[%clk 0:02:32]} 12. O-O {[%clk 0:02:42]}  Be6 {[%clk 0:02:32]} 13. b3 {[%clk 0:02:34]}  Rfc8 {[%clk 0:02:26]} 14. Rac1 {[%clk 0:02:19]}  a6 {[%clk 0:02:24]} 15. a4 {[%clk 0:01:43]}  Nd7 {[%clk 0:02:20]} 16. Rb1 {[%clk 0:01:33]}  Qc5 {[%clk 0:02:01]} 17. Qd2 {[%clk 0:01:32]}  Ne5 {[%clk 0:01:54]} 18. Kh1 {[%clk 0:01:24]}  Nc6 {[%clk 0:01:52]} 19. Rbd1 {[%clk 0:01:13]}  Qb6 {[%clk 0:01:39]} 20. Qb2 {[%clk 0:01:04]}  Nd4 {[%clk 0:01:16]} 21. Nd5 {[%clk 0:00:56]}  Bxd5 {[%clk 0:01:16]} 22. Rxd4 {[%clk 0:00:53]}  Bc6 {[%clk 0:01:15]} 23. f4 {[%clk 0:00:48]}  Bxa4 {[%clk 0:01:10]} 24. Bd1 {[%clk 0:00:26]}  Bd7 {[%clk 0:00:58]} 25. f5 {[%clk 0:00:25]}  Rc5 {[%clk 0:00:58]} 26. Rf3 {[%clk 0:00:13]}  Rac8 {[%clk 0:00:52]} 27. Qf2 {[%clk 0:00:12]}  Be8 {[%clk 0:00:38]} 28. Qh4 {[%clk 0:00:11]}  Re5 {[%clk 0:00:26]} 29. Rh3 {[%clk 0:00:08]}  h5 {[%clk 0:00:25]} 30. Rd2 {[%clk 0:00:07]}  Qa5 {[%clk 0:00:19]} 31. Qe1 {[%clk 0:00:04]}  Rxe4 {[%clk 0:00:16]} 32. Qxe4 {[%clk 0:00:04]}  Qxd2 {[%clk 0:00:16]} 33. Rd3 {[%clk 0:00:04]}  Qg5 {[%clk 0:00:11]} 34. h4 {[%clk 0:00:03]}  Qxf5 {[%clk 0:00:10]} 0-1


[Site "https://www.chess.com"]

[Event "Titled Tuesday Blitz February 15 Late 2022"]
[White "Wu, Christopher"]
[Black "Medeiros Jr, Francisco De Assis"]
[WhiteFideId "2040875"]
[BlackFideId "2114267"]
[WhiteElo "2665"]
[BlackElo "1998"]
[Result "1-0"]
[Round "01"]
[TimeControl "180+1"]
[Date "2022.02.16"]
[WhiteClock "0:00:01"]
[BlackClock "0:00:01"]

1. d4 {[%clk 0:03:00]}  d5 {[%clk 0:03:00]} 2. c4 {[%clk 0:03:00]}  e6 {[%clk 0:02:56]} 3. Nf3 {[%clk 0:02:58]}  a6 {[%clk 0:02:57]} 4. g3 {[%clk 0:02:56]}  dxc4 {[%clk 0:02:56]} 5. Bg2 {[%clk 0:02:55]}  b5 {[%clk 0:02:56]} 6. Ne5 {[%clk 0:02:43]}  c6 {[%clk 0:02:54]} 7. O-O {[%clk 0:02:35]}  Nf6 {[%clk 0:02:49]} 8. a4 {[%clk 0:02:33]}  Bb7 {[%clk 0:02:39]} 9. Nc3 {[%clk 0:02:31]}  Qb6 {[%clk 0:02:26]} 10. b3 {[%clk 0:02:12]}  cxb3 {[%clk 0:02:19]} 11. Qxb3 {[%clk 0:02:12]}  Nbd7 {[%clk 0:02:07]} 12. Bf4 {[%clk 0:01:52]}  Be7 {[%clk 0:01:28]} 13. Rfd1 {[%clk 0:01:44]}  Rc8 {[%clk 0:01:17]} 14. a5 {[%clk 0:01:17]}  Qd8 {[%clk 0:01:17]} 15. Ne4 {[%clk 0:01:07]}  Nxe4 {[%clk 0:01:09]} 16. Bxe4 {[%clk 0:01:06]}  O-O {[%clk 0:01:08]} 17. Qf3 {[%clk 0:00:54]}  Nxe5 {[%clk 0:00:53]} 18. Bxe5 {[%clk 0:00:50]}  Bd6 {[%clk 0:00:44]} 19. Qh5 {[%clk 0:00:41]}  f5 {[%clk 0:00:28]} 20. Bg2 {[%clk 0:00:35]}  Qe7 {[%clk 0:00:27]} 21. Rac1 {[%clk 0:00:33]}  Rfd8 {[%clk 0:00:20]} 22. Qf3 {[%clk 0:00:32]}  Rd7 {[%clk 0:00:13]} 23. Qb3 {[%clk 0:00:30]}  Rcd8 {[%clk 0:00:12]} 24. Bxc6 {[%clk 0:00:24]}  Bxc6 {[%clk 0:00:10]} 25. Rxc6 {[%clk 0:00:24]}  Bxe5 {[%clk 0:00:11]} 26. Rxe6 {[%clk 0:00:24]}  Qf7 {[%clk 0:00:10]} 27. e3 {[%clk 0:00:19]}  Bf6 {[%clk 0:00:10]} 28. d5 {[%clk 0:00:17]}  Kh8 {[%clk 0:00:09]} 29. Qc2 {[%clk 0:00:12]}  Rxd5 {[%clk 0:00:07]} 30. Rxd5 {[%clk 0:00:11]}  Rxd5 {[%clk 0:00:07]} 31. Rxa6 {[%clk 0:00:06]}  h6 {[%clk 0:00:05]} 32. Rc6 {[%clk 0:00:03]}  Qd7 {[%clk 0:00:06]} 33. a6 {[%clk 0:00:03]}  Rd1+ {[%clk 0:00:05]} 34. Kg2 {[%clk 0:00:04]}  Qd5+ {[%clk 0:00:05]} 35. Kh3 {[%clk 0:00:04]}  f4 {[%clk 0:00:04]} 36. Rc8+ {[%clk 0:00:04]}  Bd8 {[%clk 0:00:02]} 37. Qg6 {[%clk 0:00:02]}  Kg8 {[%clk 0:00:01]} 38. Qe8+ {[%clk 0:00:02]}  Kh7 {[%clk 0:00:01]} 39. exf4 {[%clk 0:00:01]} 1-0


[Site "https://www.chess.com"]

[Event "Titled Tuesday Blitz February 15 Late 2022"]
[White "Yuan, Qingyu"]
[Black "Li, Hui"]
[WhiteFideId "8609772"]
[BlackFideId "15400310"]
[WhiteElo "2359"]
[BlackElo "1954"]
[Result "1-0"]
[Round "01"]
[TimeControl "180+1"]
[Date "2022.02.16"]
[WhiteClock "0:00:47"]
[BlackClock "0:00:04"]

1. Nf3 {[%clk 0:02:59]}  d5 {[%clk 0:02:57]} 2. g3 {[%clk 0:02:59]}  Bg4 {[%clk 0:02:55]} 3. Bg2 {[%clk 0:02:59]}  c6 {[%clk 0:02:54]} 4. O-O {[%clk 0:02:59]}  Nd7 {[%clk 0:02:53]} 5. h3 {[%clk 0:02:59]}  Bxf3 {[%clk 0:02:53]} 6. Bxf3 {[%clk 0:03:00]}  Ngf6 {[%clk 0:02:52]} 7. d3 {[%clk 0:03:00]}  e5 {[%clk 0:02:51]} 8. e4 {[%clk 0:03:00]}  dxe4 {[%clk 0:02:50]} 9. dxe4 {[%clk 0:03:00]}  Be7 {[%clk 0:02:50]} 10. Qe2 {[%clk 0:03:01]}  O-O {[%clk 0:02:50]} 11. Rd1 {[%clk 0:02:59]}  Qc7 {[%clk 0:02:50]} 12. Nd2 {[%clk 0:02:58]}  Rfe8 {[%clk 0:02:47]} 13. Nc4 {[%clk 0:02:55]}  Bf8 {[%clk 0:02:40]} 14. h4 {[%clk 0:02:47]}  Rad8 {[%clk 0:02:30]} 15. Be3 {[%clk 0:02:33]}  Bc5 {[%clk 0:02:26]} 16. Bd2 {[%clk 0:02:21]}  Nf8 {[%clk 0:01:53]} 17. b4 {[%clk 0:02:13]}  Be7 {[%clk 0:01:49]} 18. c3 {[%clk 0:02:12]}  Ne6 {[%clk 0:01:33]} 19. a4 {[%clk 0:02:12]}  Bf8 {[%clk 0:01:32]} 20. a5 {[%clk 0:02:05]}  g6 {[%clk 0:01:02]} 21. Be3 {[%clk 0:02:03]}  c5 {[%clk 0:00:52]} 22. b5 {[%clk 0:02:01]}  Bg7 {[%clk 0:00:35]} 23. Qb2 {[%clk 0:01:33]}  Rxd1+ {[%clk 0:00:23]} 24. Rxd1 {[%clk 0:01:32]}  b6 {[%clk 0:00:07]} 25. Qa2 {[%clk 0:01:25]}  Rd8 {[%clk 0:00:05]} 26. Rxd8+ {[%clk 0:01:00]}  Nxd8 {[%clk 0:00:05]} 27. axb6 {[%clk 0:00:55]}  axb6 {[%clk 0:00:06]} 28. Qa8 {[%clk 0:00:55]}  Nd7 {[%clk 0:00:04]} 29. Bg5 {[%clk 0:00:47]}  f6 {[%clk 0:00:04]} 30. Bc1 {[%clk 0:00:47]}  Qb7 {[%clk 0:00:04]} 31. Qxd8+ {[%clk 0:00:47]} 1-0


[Site "https://www.chess.com"]

[Event "Titled Tuesday Blitz February 15 Late 2022"]
[White "Adewumi, Tanitoluwa"]
[Black "Pinto, Daniel"]
[WhiteFideId "30966396"]
[BlackFideId "3303144"]
[WhiteElo "2565"]
[BlackElo "1938"]
[Result "0-1"]
[Round "02"]
[TimeControl "180+1"]
[Date "2022.02.16"]
[WhiteClock "0:00:03"]
[BlackClock "0:00:06"]

1. d4 {[%clk 0:03:00]}  Nf6 {[%clk 0:02:52]} 2. Bf4 {[%clk 0:02:57]}  c5 {[%clk 0:02:51]} 3. e3 {[%clk 0:02:52]}  Qb6 {[%clk 0:02:51]} 4. Nc3 {[%clk 0:02:39]}  d6 {[%clk 0:02:50]} 5. Rb1 {[%clk 0:02:32]}  cxd4 {[%clk 0:02:49]} 6. exd4 {[%clk 0:02:31]}  Nc6 {[%clk 0:02:49]} 7. d5 {[%clk 0:02:00]}  Ne5 {[%clk 0:02:40]} 8. Bxe5 {[%clk 0:01:59]}  dxe5 {[%clk 0:02:40]} 9. Nf3 {[%clk 0:01:59]}  e4 {[%clk 0:02:27]} 10. Bb5+ {[%clk 0:01:51]}  Bd7 {[%clk 0:02:13]} 11. Bxd7+ {[%clk 0:01:38]}  Kxd7 {[%clk 0:02:12]} 12. Ne5+ {[%clk 0:01:38]}  Ke8 {[%clk 0:02:09]} 13. O-O {[%clk 0:01:37]}  e6 {[%clk 0:01:56]} 14. Re1 {[%clk 0:01:34]}  Bd6 {[%clk 0:01:48]} 15. Nc4 {[%clk 0:01:32]}  Bxh2+ {[%clk 0:01:46]} 16. Kh1 {[%clk 0:00:44]}  Qc7 {[%clk 0:01:42]} 17. b3 {[%clk 0:00:41]}  Qf4 {[%clk 0:01:25]} 18. Re3 {[%clk 0:00:31]}  Ng4 {[%clk 0:01:16]} 19. Nxe4 {[%clk 0:00:29]}  Nxe3 {[%clk 0:01:12]} 20. Ned6+ {[%clk 0:00:25]}  Kf8 {[%clk 0:01:00]} 21. fxe3 {[%clk 0:00:24]}  Qh4 {[%clk 0:00:52]} 22. dxe6 {[%clk 0:00:15]}  Bxd6+ {[%clk 0:00:47]} 23. Kg1 {[%clk 0:00:16]}  Bh2+ {[%clk 0:00:31]} 24. Kf1 {[%clk 0:00:16]}  Qf6+ {[%clk 0:00:28]} 25. Ke2 {[%clk 0:00:16]}  Qxe6 {[%clk 0:00:19]} 26. Qd4 {[%clk 0:00:16]}  Bc7 {[%clk 0:00:17]} 27. Qc5+ {[%clk 0:00:16]}  Qe7 {[%clk 0:00:17]} 28. Qd5 {[%clk 0:00:16]}  Rd8 {[%clk 0:00:16]} 29. Qxb7 {[%clk 0:00:17]}  g6 {[%clk 0:00:14]} 30. Rf1 {[%clk 0:00:16]}  Bb6 {[%clk 0:00:13]} 31. Qc6 {[%clk 0:00:10]}  Kg7 {[%clk 0:00:12]} 32. a4 {[%clk 0:00:11]}  Qe6 {[%clk 0:00:11]} 33. Qxe6 {[%clk 0:00:10]}  fxe6 {[%clk 0:00:11]} 34. a5 {[%clk 0:00:10]}  Bc5 {[%clk 0:00:10]} 35. c3 {[%clk 0:00:10]}  Rhf8 {[%clk 0:00:10]} 36. Ra1 {[%clk 0:00:10]}  Be7 {[%clk 0:00:10]} 37. Ne5 {[%clk 0:00:10]}  Rc8 {[%clk 0:00:10]} 38. Rc1 {[%clk 0:00:09]}  Bf6 {[%clk 0:00:10]} 39. Nc4 {[%clk 0:00:09]}  Rfd8 {[%clk 0:00:09]} 40. Rc2 {[%clk 0:00:09]}  Rd5 {[%clk 0:00:10]} 41. e4 {[%clk 0:00:08]}  Rg5 {[%clk 0:00:09]} 42. Kf3 {[%clk 0:00:08]}  Rf8 {[%clk 0:00:09]} 43. g3 {[%clk 0:00:05]}  Be5+ {[%clk 0:00:09]} 44. Ke2 {[%clk 0:00:05]}  Bxg3 {[%clk 0:00:08]} 45. Kd3 {[%clk 0:00:05]}  Bc7 {[%clk 0:00:08]} 46. Re2 {[%clk 0:00:04]}  Rf3+ {[%clk 0:00:08]} 47. Kd2 {[%clk 0:00:01]}  Rh3 {[%clk 0:00:08]} 48. e5 {[%clk 0:00:01]}  Rgg3 {[%clk 0:00:07]} 49. Kc2 {[%clk 0:00:01]}  Rxc3+ {[%clk 0:00:07]} 50. Kd2 {[%clk 0:00:02]}  Rxb3 {[%clk 0:00:07]} 51. Rf2 {[%clk 0:00:03]}  Rhd3+ {[%clk 0:00:07]} 52. Kc2 {[%clk 0:00:02]}  Rdc3+ {[%clk 0:00:08]} 53. Kd2 {[%clk 0:00:02]}  Rxc4 {[%clk 0:00:08]} 54. Rf6 {[%clk 0:00:02]}  Bxa5+ {[%clk 0:00:08]} 55. Ke2 {[%clk 0:00:02]}  Rc2+ {[%clk 0:00:09]} 56. Kd1 {[%clk 0:00:03]}  Rd2+ {[%clk 0:00:09]} 57. Kc1 {[%clk 0:00:03]}  Re3 {[%clk 0:00:06]} 58. Rxe6 {[%clk 0:00:03]}  Re1# {[%clk 0:00:06]} 0-1


[Site "https://www.chess.com"]

[Event "Titled Tuesday Blitz February 15 Late 2022"]
[White "Ankerst, Mihael"]
[Black "Carreto Nieto, Giovanni"]
[WhiteFideId "14602369"]
[BlackFideId "5105030"]
[WhiteElo "2298"]
[BlackElo "2221"]
[Result "0-1"]
[Round "02"]
[TimeControl "180+1"]
[Date "2022.02.16"]
[WhiteClock "0:00:58"]
[BlackClock "0:00:26"]

1. e4 {[%clk 0:02:51]}  c5 {[%clk 0:02:59]} 2. d4 {[%clk 0:02:51]}  cxd4 {[%clk 0:02:59]} 3. Nf3 {[%clk 0:02:51]}  Nc6 {[%clk 0:02:59]} 4. Nxd4 {[%clk 0:02:51]}  g6 {[%clk 0:02:59]} 5. Nc3 {[%clk 0:02:51]}  Bg7 {[%clk 0:02:59]} 6. Be3 {[%clk 0:02:52]}  Nf6 {[%clk 0:02:58]} 7. Bc4 {[%clk 0:02:53]}  O-O {[%clk 0:02:57]} 8. Bb3 {[%clk 0:02:53]}  d6 {[%clk 0:02:57]} 9. f3 {[%clk 0:02:54]}  Bd7 {[%clk 0:02:56]} 10. Qd2 {[%clk 0:02:54]}  Qa5 {[%clk 0:02:57]} 11. O-O-O {[%clk 0:02:54]}  Rfc8 {[%clk 0:02:57]} 12. Kb1 {[%clk 0:02:55]}  Ne5 {[%clk 0:02:58]} 13. Nd5 {[%clk 0:02:47]}  Qxd2 {[%clk 0:02:56]} 14. Rxd2 {[%clk 0:02:46]}  Nxd5 {[%clk 0:02:54]} 15. Bxd5 {[%clk 0:02:47]}  Nc4 {[%clk 0:02:53]} 16. Bxc4 {[%clk 0:02:47]}  Rxc4 {[%clk 0:02:53]} 17. b3 {[%clk 0:02:48]}  Rc3 {[%clk 0:02:52]} 18. Rd3 {[%clk 0:02:43]}  Rac8 {[%clk 0:02:51]} 19. Kb2 {[%clk 0:02:38]}  Rxc2+ {[%clk 0:02:50]} 20. Kb1 {[%clk 0:02:38]}  Rxg2 {[%clk 0:02:47]} 21. Rc1 {[%clk 0:02:34]}  Rxc1+ {[%clk 0:02:42]} 22. Bxc1 {[%clk 0:02:34]}  Rg1 {[%clk 0:02:30]} 23. Nc2 {[%clk 0:02:02]}  Bb5 {[%clk 0:02:19]} 24. Rd5 {[%clk 0:01:48]}  Be2 {[%clk 0:02:17]} 25. Nd4 {[%clk 0:01:44]}  Bd3+ {[%clk 0:01:50]} 26. Kb2 {[%clk 0:01:40]}  Kf8 {[%clk 0:01:43]} 27. Be3 {[%clk 0:01:29]}  Rg2+ {[%clk 0:01:17]} 28. Kc3 {[%clk 0:01:26]}  Ba6 {[%clk 0:01:12]} 29. Ra5 {[%clk 0:01:26]}  Rxh2 {[%clk 0:01:10]} 30. b4 {[%clk 0:01:26]}  Re2 {[%clk 0:00:55]} 31. Bg5 {[%clk 0:01:26]}  h6 {[%clk 0:00:45]} 32. Bc1 {[%clk 0:01:25]}  Bxd4+ {[%clk 0:00:26]} 33. Kxd4 {[%clk 0:01:25]}  Rc2 {[%clk 0:00:24]} 34. Bxh6+ {[%clk 0:01:23]}  Ke8 {[%clk 0:00:24]} 35. b5 {[%clk 0:01:24]}  Rc5 {[%clk 0:00:23]} 36. a4 {[%clk 0:01:21]}  g5 {[%clk 0:00:23]} 37. Kd3 {[%clk 0:01:15]}  f6 {[%clk 0:00:22]} 38. f4 {[%clk 0:01:11]}  Kd7 {[%clk 0:00:18]} 39. fxg5 {[%clk 0:01:03]}  fxg5 {[%clk 0:00:19]} 40. Kd4 {[%clk 0:01:04]}  g4 {[%clk 0:00:17]} 41. Ke3 {[%clk 0:01:01]}  Kc7 {[%clk 0:00:16]} 42. Bf8 {[%clk 0:00:53]}  Re5 {[%clk 0:00:16]} 43. Bg7 {[%clk 0:00:52]}  Rc5 {[%clk 0:00:14]} 44. Bf8 {[%clk 0:00:51]}  Kb6 {[%clk 0:00:13]} 45. bxa6 {[%clk 0:00:51]}  Rxa5 {[%clk 0:00:12]} 46. axb7 {[%clk 0:00:51]}  Kxb7 {[%clk 0:00:12]} 47. Bxe7 {[%clk 0:00:51]}  Kc6 {[%clk 0:00:13]} 48. e5 {[%clk 0:00:50]}  dxe5 {[%clk 0:00:12]} 49. Bf6 {[%clk 0:00:50]}  Kd5 {[%clk 0:00:12]} 50. Bd8 {[%clk 0:00:49]}  Rxa4 {[%clk 0:00:12]} 51. Kf2 {[%clk 0:00:49]}  Ke4 {[%clk 0:00:12]} 52. Kg2 {[%clk 0:00:50]}  Ra3 {[%clk 0:00:12]} 53. Bg5 {[%clk 0:00:50]}  Rf3 {[%clk 0:00:13]} 54. Bd8 {[%clk 0:00:49]}  Kd3 {[%clk 0:00:13]} 55. Ba5 {[%clk 0:00:49]}  a6 {[%clk 0:00:13]} 56. Bb6 {[%clk 0:00:50]}  e4 {[%clk 0:00:14]} 57. Bc7 {[%clk 0:00:50]}  e3 {[%clk 0:00:15]} 58. Bb6 {[%clk 0:00:51]}  e2 {[%clk 0:00:16]} 59. Ba5 {[%clk 0:00:52]}  Kc2 {[%clk 0:00:16]} 60. Kh2 {[%clk 0:00:52]}  Kd1 {[%clk 0:00:16]} 61. Kg2 {[%clk 0:00:53]}  e1=Q {[%clk 0:00:17]} 62. Bxe1 {[%clk 0:00:52]}  Kxe1 {[%clk 0:00:18]} 63. Kh1 {[%clk 0:00:51]}  a5 {[%clk 0:00:18]} 64. Kg2 {[%clk 0:00:52]}  a4 {[%clk 0:00:19]} 65. Kh2 {[%clk 0:00:53]}  a3 {[%clk 0:00:20]} 66. Kg2 {[%clk 0:00:54]}  a2 {[%clk 0:00:21]} 67. Kh2 {[%clk 0:00:55]}  Kd2 {[%clk 0:00:22]} 68. Kg2 {[%clk 0:00:55]}  Ke3 {[%clk 0:00:22]} 69. Kh2 {[%clk 0:00:56]}  a1=Q {[%clk 0:00:22]} 70. Kg2 {[%clk 0:00:57]}  Qb2+ {[%clk 0:00:22]} 71. Kh1 {[%clk 0:00:57]}  Qc1+ {[%clk 0:00:23]} 72. Kg2 {[%clk 0:00:58]}  Qd2+ {[%clk 0:00:24]} 73. Kg1 {[%clk 0:00:57]}  Qe1+ {[%clk 0:00:25]} 74. Kh2 {[%clk 0:00:58]}  Qe2+ {[%clk 0:00:26]} 75. Kh1 {[%clk 0:00:58]}  Rf1# {[%clk 0:00:26]} 0-1


[Site "https://www.chess.com"]